Workbook

Sheet Measure (hidden)
B1: SWA Cable | L1: Terminations | V1: BCEW | AG1: BCEW Terminations
B2: 150mm2, 4 core | C2: 70mm2, 3 core | D2: 50mm2, 4 core | E2: 35mm2, 4 core | F2: 16mm2, 4 core | G2: 10mm2, 4 core | H2: 6mm2, 4 core | I2: 4mm2, 4 core | J2: 4mm2, 3 core | K2: 2,5mm2, 3 core | L2: 150mm2, 4 core | M2: 70mm2, 3 core | N2: 50mm2, 4 core | O2: 35mm2, 4 core | P2: 16mm2, 4 core | Q2: 10mm2, 4 core | R2: 6mm2, 4 core | S2: 4mm2, 4core | T2: 4mm2, 3 core | U2: 2,5mm2, 3 core | V2: 70mm2 | W2: 50mm2 | Z2: 35mm | AA2: 25mm2 | AB2: 16mm2 | AC2: 10mm2 | AD2: 6mm2 | AE2: 4mm2 | AF2: 2,5mm2 | AG2: 70mm2 | AH2: 50mm2 | AI2: 35mm | AJ2: 25mm2 | AK2: 16mm2 | AL2: 10mm2 | AM2: 6mm2 | AN2: 4mm2 | AO2: 2,5mm2
A12: Total | B12: =SUM(B3:B11) -> 0 | C12: 0 | D12: 0 | E12: 0 | F12: 0 | G12: 0 | H12: 0 | I12: 0 | J12: 0 | K12: 0 | L12: 0 | M12: 0 | N12: 0 | O12: 0 | P12: 0 | Q12: 0 | R12: 0 | S12: 0 | T12: 0 | U12: 0 | V12: 0 | W12: 0 | Z12: =SUM(Z3:Z11) -> 0 | AA12: 0 | AB12: 0 | AC12: 0 | AD12: 0 | AE12: 0 | AF12: 0 | AG12: 0 | AH12: 0 | AI12: 0 | AJ12: 0 | AK12: 0 | AL12: 0 | AM12: 0 | AN12: 0 | AO12: 0
Q14: House wire | W14: Surfex | AI14: Isolators
B15: 1 way | C15: 2 way | D15: 3 way | E15: 4 way | F15: 2x4 | G15: 4x4 | H15: WP SSO | K15: 16A SSO | L15: Light Switch | M15: Industrial LS | N15: 20mm Conduit | O15: 25mm Conduit | P15: 5A Unswitched | Q15: 1.5mm2 | R15: 2.5mm2 | U15: 4mm2 | V15: 6mm2 | W15: 2.5mm2, 4 core | X15: 4mm2, 2 core | Y15: 4mm2, 4 core | Z15: Type A | AA15: Type B | AB15: Type C | AC15: Type D | AD15: Type E | AE15: Type F | AG15: Type L2 | AH15: Type L | AI15: 35A TP | AJ15: 20A TP | AK15: 35A DP | AL15: 63A TP | AM15: 20A DP | AN15: Daylight switch | AP15: Movement sensor 1 Chanel | AQ15: Movement sensor 2 Chanel | AR15: Trunking | AS15: 16A SSO for trunking | AT15: 16A DED. SSO for trunk. | AU15: 16A Dedicated SSO | AV15: 3Ph SSO
A16: Area A
A17: DB-D
A18: EL8 | C18: 1 | D18: 2 | F18: 3 | L18: 3 | N18: 22 | P18: 3 | R18: =N18*4.5 -> 99 | AB18: 3
A19: EL17 | D19: 4 | F19: 1 | L19: 1 | N19: 15 | R19: =N19*4.5 -> 67.5 | AE19: 90 | AF19: m
A20: EL18 | C20: 15 | F20: 1 | L20: 1 | N20: 60 | P20: 15 | R20: =N20*4.5 -> 270
A21: P2 | G21: 4 | K21: 4 | N21: 10 | U21: =N21*3.5 -> 35
A22: Fire detection | C22: 8 | D22: 2 | O22: =45*2 -> 90
A23: TV Conduits | O23: 20
A24: Data Outlets | G24: 5 | O24: 50
A26: Area B
A27: DB-DH
A28: EL9 | C28: 8 | F28: 1 | L28: 1 | N28: 43 | P28: 8 | R28: =N28*4.5 -> 193.5 | Z28: 8
A29: P4 | G29: 4 | K29: 4 | N29: 48 | U29: =N29*3.5 -> 168
A30: DB-D
A31: EL9 | C31: 3 | N31: 25 | P31: 3 | R31: =N31*4.5 -> 112.5 | AC31: 3
A32: Fire detection | C32: 5 | O32: 60
A33: TV Conduits
A34: Data Outlets | G34: 4 | O34: =4*55 -> 220
A36: Area C
A37: DB-D
A38: EL5 | C38: 4 | N38: 40 | P38: 1 | R38: =N38*4.5 -> 180 | AC38: 4
A39: P | G39: 2 | K39: 2 | N39: 20 | U39: =N39*3.5 -> 70
A40: I11 to I13 | C40: 3 | G40: 3 | N40: =30*3 -> 90 | U40: =N40*3.5 -> 315 | AM40: 3
A41: Fire detection
A42: TV Conduits
A43: Data Outlets | G43: 5 | O43: =55*5 -> 275
A45: Area D
A46: DB-D
A47: P4 | G47: 8 | N47: 60 | R47: =N47*3.5 -> 210 | AU47: 8
A48: L | D48: 4 | N48: 20 | P48: 3 | Q48: =N48*4.5 -> 90
A50: Area D1
A51: DB-R10
A52: L1 | C52: 9 | F52: 1 | L52: 1 | N52: 30 | P52: 9 | Q52: =N52*4.5 -> 135 | AA52: 9
A53: P1 | R53: =17*3.5 -> 59.5 | AR53: 17 | AS53: 4 | AT53: 2
A54: AC1 | N54: 10 | R54: =N54*3.5 -> 35 | AM54: 1
A55: AC2 | N55: 15 | R55: =N55*3.5 -> 52.5 | AM55: 1
A56: DB-NW
A57: L1 | C57: 2 | F57: 1 | L57: 1 | N57: 15 | P57: 2 | Q57: =N57*4.5 -> 67.5 | Z57: 2
A58: P1 | R58: =19*3.5 -> 66.5 | AR58: 19 | AS58: 3 | AT58: 6
A59: AC1 | N59: 10 | R59: =N59*3.5 -> 35 | AM59: 1
A60: DB-R11
A61: L1 | C61: 2 | F61: 1 | L61: 1 | N61: 15 | P61: 2 | Q61: =N61*4.5 -> 67.5 | Z61: 2
A62: P1 | R62: =19*3.5 -> 66.5 | AR62: 19 | AS62: 3 | AT62: 6
A63: AC1 | N63: 10 | R63: =N63*3.5 -> 35 | AM63: 1
A64: Fire detection | C64: 4 | O64: 30
A65: Data Outlets | O65: 20
A67: Area E
A68: DB-CB
A69: L1 | C69: 6 | F69: 1 | L69: 1 | N69: 18 | P69: 6 | Q69: =N69*4.5 -> 81 | AA69: 9 | AD69: 6
A70: P1 | G70: 2 | K70: 2 | N70: 10 | R70: =N70*3.5 -> 35
A71: P1 | G71: 2 | K71: 2 | N71: 10 | R71: =N71*3.5 -> 35
A72: DB
A73: L | C73: 46 | F73: 1 | L73: 1 | N73: 200 | P73: 2 | Q73: =N73*4.5 -> 900 | Z73: 27 | AA73: 19
A74: P | R74: =19*3.5 -> 66.5
A75: I | G75: 4 | N75: 80 | R75: =N75*3.5 -> 280
A76: Fire detection | C76: 6 | O76: 60
A77: Data Outlets | G77: 11 | O77: =11*45 -> 495
A79: TOTAL | B79: =SUM(B16:B78) -> 0 | C79: =SUM(C18:C78) -> 122 | D79: =SUM(D16:D78) -> 12 | E79: 0 | F79: 11 | G79: 54 | H79: 0 | I79: 0 | J79: 0 | K79: 14 | L79: 11 | M79: 0 | N79: 876 | O79: 1320 | P79: 54 | Q79: 1341 | R79: =SUM(R17:R78) -> 1899 | U79: =SUM(U16:U78) -> 588 | V79: 0 | W79: 0 | X79: 0 | Y79: 0 | Z79: 39 | AA79: 37 | AB79: 3 | AC79: 7 | AD79: 6 | AE79: 90 | AG79: =SUM(AG16:AG78) -> 0 | AH79: =SUM(AH16:AH78) -> 0 | AI79: =SUM(AI16:AI78) -> 0 | AJ79: =SUM(AJ16:AJ78) -> 0 | AK79: =SUM(AK16:AK78) -> 0 | AL79: =SUM(AL17:AL78) -> 0 | AM79: =SUM(AM16:AM78) -> 7 | AN79: =SUM(AN16:AN78) -> 0 | AP79: =SUM(AP16:AP78) -> 0 | AQ79: 0 | AR79: 55 | AS79: 10 | AT79: 14 | AU79: 8 | AV79: =SUM(AV18:AV24) -> 0

Sheet Bill 1
A1: BILL NO. 1: PRELIMINARY AND GENERAL ITEMS
A3: Item | B3: Description | C3: Unit | D3: Qty | E3: Rate | F3: Amount
A5: 1.1 | B5: Preliminary and General Items, pertaining specifically to the Electrical Installation.
A7: 1.1.1. | B7: Nett price for site establishment and compliance with the conditions of contract, including storage, insurance and other overheads. | C7: Sum | D7: 1 | E7: 0 | F7: =D7*E7 -> 0
A9: 1.1.2 | B9: Insurance and Guarantee | C9: Sum | D9: 1 | E9: 0 | F9: =D9*E9 -> 0
A11: 1.1.3 | B11: Nett price to comply with all the requirements of the Health & Safety specifications. | C11: Sum | D11: 1 | E11: 0 | F11: 0
A13: 1.1.4 | B13: Site supervision and reporting according to the Health and Safety Specifications. | C13: Sum | D13: 1 | E13: 0 | F13: 0
A15: 1.1.5 | B15: Nett price for provision of "As Built" drawings and O & M Manuals, as per specification. | C15: Sum | D15: 1 | E15: 0 | F15: 0
A17: 1.1.6 | B17: Supplying or hiring, erection & dismantling of complete mobile cranes, scissor jacks and cherry pickers, including access ladders, warning and safety signs as required for the installation for the duration of the contract. | C17: Sum | D17: 1 | E17: 0 | F17: =D17*E17 -> 0
B46: TOTAL FOR BILL NO. 1: PRELIMINARY AND GENERAL ITEMS | F46: =SUM(F4:F45) -> 0
B47: (CARRIED TO FINAL SUMMARY)

Sheet Bill 2
A1: BILL NO. 2 : SITEWORKS AND SUPERVISION
A3: Item | B3: Description | C3: Unit | D3: Qty | E3: Rate | F3: Amount
A5: 1. | B5: Liaison with Main Contractor and for attendance for
B6: the checking of Builders' and Subcontractors' work
B7: pertaining to the Electrical Installation | C7: Sum | D7: 1 | E7: 0 | F7: =D7*E7 -> 0
A9: 2 | B9: Galvanised draw-wire in all sleeves
A11: 2.1 | B11: Supply | C11: m | D11: 0 | E11: 0 | F11: =D11*E11 -> 0
A13: 2.2 | B13: Install | C13: m | D13: =D11 -> 0 | E13: 0 | F13: =D13*E13 -> 0
A15: 3. | B15: Cable Sleeves P.V.C.
A17: 3.1 | B17: Supply (by others)
B19: 50 mm diameter | C19: m | D19: 0 | E19: 0 | F19: =D19*E19 -> 0
B21: 50 mm diameter slow bends | C21: No | D21: 0 | E21: 0 | F21: =D21*E21 -> 0
A23: 3.2 | B23: Install
B25: 50 mm diameter | C25: No | D25: =D19 -> 0 | E25: 0 | F25: =D25*E25 -> 0
B27: 50 mm diameter slow bends | C27: No | D27: =D21 -> 0 | E27: 0 | F27: =D27*E27 -> 0
A29: 4. | B29: Stripping out of existing electrical installation and handing over of equipment to the Client. | C29: Sum | D29: 1 | E29: 0 | F29: =D29*E29 -> 0
B52: TOTAL FOR BILL NO. 2 : SITEWORKS AND SUPERVISION
B53: (CARRIED FORWARD TO FINAL SUMMARY) | F53: =SUM(F4:F51) -> 0

Sheet Bill 3
A1: BILL NO. 3: LV RETICULATION
A3: Item | B3: Description | C3: Unit | D3: Qty | E3: Rate | F3: Amount
A4: 1 | B4: Supply and install in position the following normal distribution boards, complete with trays, labels and conduit terminations as required by the number and type of circuits (minimum one conduit per circuit) along with at least six spare
B5: Distribution Board DB - R10. Refer to drawing P8081E01-005
A7: 1.1 | B7: Supply | C7: Sum | D7: 1 | E7: 0 | F7: =D7*E7 -> 0
A9: 1.2 | B9: Install | C9: Sum | D9: 1 | E9: 0 | F9: =D9*E9 -> 0
B11: Distribution Board DB - R11. Refer to drawing P8081E01-005
A13: 1.3 | B13: Supply | C13: Sum | D13: 1 | E13: 0 | F13: =D13*E13 -> 0
A15: 1.4 | B15: Install | C15: Sum | D15: 1 | E15: 0 | F15: =D15*E15 -> 0
B17: Distribution Board DB - NW. Refer to drawing P8081E01-005
A19: 1.3 | B19: Supply | C19: Sum | D19: 1 | E19: 0 | F19: =D19*E19 -> 0
A21: 1.4 | B21: Install | C21: Sum | D21: 1 | E21: 0 | F21: =D21*E21 -> 0
B23: Distribution Board DB - CB. Refer to drawing P8081E01-006
A25: 1.5 | B25: Supply | C25: Sum | D25: 1 | E25: 0 | F25: =D25*E25 -> 0
A27: 1.6 | B27: Install | C27: Sum | D27: 1 | E27: 0 | F27: =D27*E27 -> 0
B29: Distribution Board DB - HVAC
A31: 1.7 | B31: Supply | C31: Sum | D31: 1 | E31: 0 | F31: =D31*E31 -> 0
A33: 1.8 | B33: Install | C33: Sum | D33: 1 | E33: 0 | F33: =D33*E33 -> 0
A35: 1.9 | B35: Provisional sum for changes required on exising DB's (Add indicated value in amount column) | C35: sum | D35: 1 | E35: 10,000.00
A37: 1.10 | B37: Profit and attendance on Item 1.9 (Indicate percentage and value in amount column) | C37: %
B46: AMOUNT CARRIED FORWARD | F46: =SUM(F4:F45) -> 0
A48: 2 | B48: Cables
B49: Supply, deliver, install, connect and commission the following 600/1 000V copper cables as specified:
B51: Type PVC/SWA/PVC:
B53: 150mm², 4-core ECC
A55: 2.1 | B55: Supply | C55: m | D55: 43 | E55: 0 | F55: =D55*E55 -> 0
A57: 2.2 | B57: Install | C57: m | D57: =D55 -> 43 | E57: 0 | F57: =D57*E57 -> 0
B59: 120mm², 4-core ECC
A61: 2.3 | B61: Supply | C61: m | D61: 40 | E61: 0 | F61: =D61*E61 -> 0
A63: 2.4 | B63: Install | C63: m | D63: =D61 -> 40 | E63: 0 | F63: =D63*E63 -> 0
B65: 25mm², 4-core ECC
A67: 2.5 | B67: Supply | C67: m | D67: =4*15 -> 60 | E67: 0 | F67: =D67*E67 -> 0
A69: 2.6 | B69: Install | C69: m | D69: =D67 -> 60 | E69: 0 | F69: =D69*E69 -> 0
B71: 10mm², 4-core ECC
A73: 2.7 | B73: Supply | C73: m | D73: 30 | E73: 0 | F73: =D73*E73 -> 0
A75: 2.8 | B75: Install | C75: m | D75: =D73 -> 30 | E75: 0 | F75: =D75*E75 -> 0
B77: 150mm², 4-core ECC
A79: 2.9 | B79: Relocation of exisitng cable | C79: m | D79: 21 | E79: 0 | F79: =D79*E79 -> 0
A81: 3 | B81: Cable terminations and Joints
B83: For PVC/SWA/PVC cables, including armour glands, shrouds, lugs, connections, insulation tape, cadmium plated bolts, nuts, spring-washers, etc.
B85: Terminations
A86: 2.9 | B86: Rolacation of exisitng cable | C86: m
B87: 150mm², 4-core:
A89: 3.1 | B89: Supply | C89: No | E89: 0 | F89: =D89*E89 -> 0
A91: 3.2 | B91: Install | C91: No | D91: =D89 -> 0 | E91: 0 | F91: =D91*E91 -> 0
B95: AMOUNT CARRIED FORWARD | F95: =SUM(F47:F94) -> 0
B97: 120mm², 4-core:
A99: 3.3 | B99: Supply | C99: No | D99: 2 | E99: 0 | F99: =D99*E99 -> 0
A101: 3.4 | B101: Install | C101: No | D101: =D99 -> 2 | E101: 0 | F101: =D101*E101 -> 0
B103: 25mm², 4-core:
A105: 3.5 | B105: Supply | C105: No | D105: =4*2 -> 8 | E105: 0 | F105: =D105*E105 -> 0
A107: 3.6 | B107: Install | C107: No | D107: =D105 -> 8 | E107: 0 | F107: =D107*E107 -> 0
B109: 10mm², 4-core:
A111: 3.7 | B111: Supply | C111: No | D111: 2 | E111: 0 | F111: =D111*E111 -> 0
A113: 3.8 | B113: Install | C113: No | D113: =D111 -> 2 | E113: 0 | F113: =D113*E113 -> 0
B115: Joints
B117: 150mm², 4-core:
A119: 3.9 | B119: Supply | C119: No | D119: 2 | E119: 0 | F119: =D119*E119 -> 0
A121: 3.10 | B121: Install | C121: No | D121: =D119 -> 2 | E121: 0 | F121: =D121*E121 -> 0
A123: 4 | B123: Earthing installation
A125: ,4.1 | B125: Bonding of taps and hand wash basins | C125: Sum | D125: 1 | E125: 0 | F125: =D125*E125 -> 0
A127: 4.2 | B127: Bonding of gutters and down pipes | C127: Sum | D127: 1 | E127: 0 | F127: 0
A129: 4.3 | B129: Earthing continuity tests | C129: Sum | D129: 1 | E129: 0 | F129: 0
B131: TOTAL PAGE 3 | F131: =SUM(F96:F130) -> 0
B133: SUMMARY FOR BILL NO. 3
B135: PAGE
B137: 1 | F137: =F46 -> 0
B139: 2 | F139: =F95 -> 0
B141: 3 | F141: =F131 -> 0
B149: TOTAL FOR BILL NO. 3: LV RETICULATION | F149: =SUM(F134:F148) -> 0
B150: (CARRIED FORWARD TO FINAL SUMMARY)

Sheet Bill 4
A1: BILL NO. 4 : GENERAL ELECTRICAL
A3: Item | B3: Description | C3: Unit | D3: Qty | E3: Rate | F3: Amount
A5: 1. | B5: Conduit and accessories.
B6: Conduit applied and installed, including
B7: couplings, cutting, reaming, bending,
B8: fixing, etc. as per specification.
B10: Type PVC
B11: Supply only :
A13: 1.1 | B13: 20 mm diameter | C13: m | D13: =Measure!N79*1.1 -> 964 | E13: 0 | G13: =D13*E13 -> 0
A15: 1.2 | B15: 25 mm diameter | C15: m | D15: =Measure!O79*1.1 -> 1452 | E15: 0 | G15: =D15*E15 -> 0
A17: 1.3 | B17: 32 mm diameter | C17: m | D17: 25 | E17: 0 | G17: =D17*E17 -> 0
B20: Install :
A22: 1.4 | B22: 20 mm diameter | C22: m | D22: =D13 -> 964 | E22: 0 | G22: 0
A24: 1.5 | B24: 25 mm diameter | C24: m | D24: =D15 -> 1452 | E24: 0 | G24: =D24*E24 -> 0
A26: 1.6 | B26: 32 mm diameter | C26: m | D26: =D17 -> 25 | E26: 0 | G26: 0
B28: Type Galvanized
B29: Supply only :
A31: 1.7 | B31: 20 mm diameter | C31: m | D31: 30 | E31: 0 | G31: 0
A33: 1.8 | B33: 25 mm diameter | C33: m | D33: 30 | E33: 0 | G33: =D33*E33 -> 0
B35: Install on surface (e.g. roof space) :
A37: 1.9 | B37: 20 mm diameter | C37: m | D37: =D31 -> 30 | E37: 0 | G37: 0
A39: 1.10 | B39: 25 mm diameter | C39: m | D39: =D33 -> 30 | E39: 0 | G39: =D39*E39 -> 0
A41: 2. | B41: Conduit boxes
B43: Outlet boxes complete with covers, include
B44: for conduit ends with 2 locknuts and female
B45: bush or coupling and male bush.
B56: AMOUNT CARRIED FORWARD | G56: =SUM(G4:G55) -> 0
A58: BILL NO. 4 : GENERAL ELECTRICAL
A60: Item | B60: Description | C60: Unit | D60: Qty | E60: Rate | F60: Amount
B62: Type PVC
B63: Supply only
A65: 2.1 | B65: 65 mm diameter x 25 mm deep ( 1-way ) | C65: No. | D65: 5 | E65: 0 | G65: =D65*E65 -> 0
A67: 2.2 | B67: 65 mm diameter x 25 mm deep ( 2-way ) | C67: No. | D67: =Measure!C79 -> 122 | E67: 0 | G67: =D67*E67 -> 0
A69: 2.3 | B69: 65 mm diameter x 25 mm deep ( 3-way ) | C69: No. | D69: 5 | E69: 0 | G69: 0
A71: 2.4 | B71: 65 mm diameter x 25 mm deep ( 4-way ) | C71: No. | D71: 5 | E71: 0 | G71: 0
A73: 2.5 | B73: 65 mm diameter x 50 mm deep ( 1-way ) | C73: No. | D73: 5 | E73: 0 | G73: 0
A75: 2.6 | B75: 65 mm diameter x 50 mm deep ( 2-way ) | C75: No. | D75: 5 | E75: 0 | G75: 0
A77: 2.7 | B77: 65 mm diameter x 50 mm deep ( 3-way ) | C77: No. | D77: 5 | E77: 0 | G77: 0
A79: 2.8 | B79: 65 mm diameter x 50 mm deep ( 4-way ) | C79: No. | D79: 5 | E79: 0 | G79: 0
A81: 2.9 | B81: 100 x 50 x 50 | C81: No. | D81: =Measure!F79 -> 11 | E81: 0 | G81: 0
A83: 2.10 | B83: 100 x 100 x 50 | C83: No. | D83: =Measure!G79 -> 54 | E83: 0 | G83: 0
B85: Install on surface (i.e. roof space)
A87: 2.11 | B87: 65 mm diameter x 25 mm deep ( 1-way ) | C87: No. | D87: =D65 -> 5 | E87: 0 | G87: =D87*E87 -> 0
A89: 2.12 | B89: 65 mm diameter x 25 mm deep ( 2-way ) | C89: No. | D89: =D67 -> 122 | E89: 0 | G89: 0
A91: 2.13 | B91: 65 mm diameter x 25 mm deep ( 3-way ) | C91: No. | D91: =D69 -> 5 | E91: 0 | G91: 0
A93: 2.14 | B93: 65 mm diameter x 25 mm deep ( 4-way ) | C93: No. | D93: =D71 -> 5 | E93: 0 | G93: 0
A95: 2.15 | B95: 65 mm diameter x 50 mm deep ( 1-way ) | C95: No. | D95: =D73 -> 5 | E95: 0 | G95: 0
A97: 2.16 | B97: 65 mm diameter x 50 mm deep ( 2-way ) | C97: No. | D97: =D75 -> 5 | E97: 0 | G97: 0
A99: 2.17 | B99: 65 mm diameter x 50 mm deep ( 3-way ) | C99: No. | D99: =D77 -> 5 | E99: 0 | G99: 0
A101: 2.18 | B101: 65 mm diameter x 50 mm deep ( 4-way ) | C101: No. | D101: =D79 -> 5 | E101: 0 | G101: 0
A103: 2.19 | B103: 100 x 50 x 50 | C103: No. | D103: =D81 -> 11 | E103: 0 | G103: =D103*E103 -> 0
A105: 2.20 | B105: 100 x 100 x 50 | C105: No. | D105: =D83 -> 54 | E105: 0 | G105: =D105*E105 -> 0
B114: AMOUNT CARRIED FORWARD | G114: =SUM(G61:G112) -> 0
A116: BILL NO. 4 : GENERAL ELECTRICAL
A118: Item | B118: Description | C118: Unit | D118: Qty | E118: Rate | F118: Amount
B120: Type Galvanized
B121: Supply only
A123: 2.21 | B123: 65 mm diameter x 25 mm deep ( 1-way ) | C123: No. | D123: 5 | E123: 0 | G123: 0
A125: 2.22 | B125: 65 mm diameter x 25 mm deep ( 2-way ) | C125: No. | D125: 5 | E125: 0 | G125: 0
A127: 2.23 | B127: 65 mm diameter x 25 mm deep ( 3-way ) | C127: No. | D127: 5 | E127: 0 | G127: 0
A129: 2.24 | B129: 65 mm diameter x 25 mm deep ( 4-way ) | C129: No. | D129: 5 | E129: 0 | G129: =D129*E129 -> 0
B131: Install on surface (i.e. roof space)
A133: 2.25 | B133: 65 mm diameter x 25 mm deep ( 1-way ) | C133: No. | D133: =D123 -> 5 | E133: 0 | G133: 0
A135: 2.26 | B135: 65 mm diameter x 25 mm deep ( 2-way ) | C135: No. | D135: =D125 -> 5 | E135: 0 | G135: 0
A137: 2.27 | B137: 65 mm diameter x 25 mm deep ( 3-way ) | C137: No. | D137: =D127 -> 5 | E137: 0 | G137: 0
A139: 2.28 | B139: 65 mm diameter x 25 mm deep ( 4-way ) | C139: No. | D139: =D129 -> 5 | E139: 0 | G139: =D139*E139 -> 0
A141: 3. | B141: Blank cover plate (as per specification)
B143: Supply
A145: 3.1 | B145: 65 mm diameter - PVC | C145: No. | D145: =SUM(D65:D79) -> 157 | E145: 0 | G145: 0
A147: 3.2 | B147: 65 mm diameter - Galvanized | C147: No. | D147: =SUM(D133:D139) -> 20 | E147: 0 | G147: 0
B149: Install
A151: 3.3 | B151: =B145 -> 65 mm diameter - PVC | C151: No. | D151: =D145 -> 157 | E151: 0 | G151: =D151*E151 -> 0
A153: 3.4 | B153: =B147 -> 65 mm diameter - Galvanized | C153: No. | D153: =D147 -> 20 | E153: 0 | G153: =D153*E153 -> 0
A155: 4. | B155: Switched socket outlets
B156: Supply, install and connect surface weatherproof industrial, 16 A, 3-pin switched socket outlet (shuttered type) complete with stainless steel mounting bracket.
A158: 4.1 | B158: Supply (Duo Combo) | C158: No. | D158: =Measure!K79 -> 14 | E158: 0 | G158: 0
A160: 4.2 | B160: Install (Duo Combo) | C160: No. | D160: =D158 -> 14 | E160: 0 | G160: 0
A162: 4.3 | B162: Supply (Double Dedicated) | C162: No. | D162: 1 | E162: 0 | G162: 0
A164: 4.4 | B164: Install (Double Dedicated) | C164: No. | D164: =D162 -> 1 | E164: 0 | G164: 0
B168: AMOUNT CARRIED FORWARD | G168: =SUM(G119:G167) -> 0
A170: BILL NO. 4 : GENERAL ELECTRICAL
A172: Item | B172: Description | C172: Unit | D172: Qty | E172: Rate | F172: Amount
B173: Supply, install and connect surface weatherproof industrial, 32 A, 5-pin switched socket outlet (shuttered type) complete.
A175: 4.5 | B175: Supply (Single) | C175: No. | D175: 0 | E175: 0 | G175: =D175*E175 -> 0
A177: 4.6 | B177: Install (Single) | C177: No. | D177: =D175 -> 0 | E177: 0 | G177: =D177*E177 -> 0
A179: 5 | B179: Heavy Duty Cable Ladder and Tray
B181: Cable Tray
B183: 300mm Wide
A185: 5.1 | B185: Supply | C185: m | D185: =15+10+10+10 -> 45 | E185: 0 | G185: 0
A187: 5.2 | B187: Install | C187: m | D187: =D185 -> 45 | E187: 0 | G187: 0
B189: 300mm Wide - Horizontal Bend
A191: 5.3 | B191: Supply | C191: No | D191: 1 | E191: 0 | G191: =D191*E191 -> 0
A193: 5.4 | B193: Install | C193: No | D193: =D191 -> 1 | E193: 0 | G193: =D193*E193 -> 0
B195: 300mm Wide - Tee
A197: 5.5 | B197: Supply | C197: No | D197: 0 | E197: 0 | G197: =D197*E197 -> 0
A199: 5.6 | B199: Install | C199: No | D199: =D197 -> 0 | E199: 0 | G199: =D199*E199 -> 0
B201: 300mm Wide - Riser/Dropper
A203: 5.7 | B203: Supply | C203: No | D203: 1 | E203: 0 | G203: =D203*E203 -> 0
A205: 5.8 | B205: Install | C205: No | D205: =D203 -> 1 | E205: 0 | G205: =D205*E205 -> 0
A207: 6 | B207: Light switches
B209: Supply, install and connect industrial, weatherproof type complete with stainless steel mounting bracket.
B211: Supply
A213: 6.1 | B213: 16 A , 1-lever , 1-way | C213: No. | D213: =Measure!L79 -> 11 | E213: 0 | G213: 0
A215: 6.2 | B215: 16 A , 1-lever , 2-way | C215: No. | D215: 1 | E215: 0 | G215: 0
A217: 6.3 | B217: Movement Sensor (1 Chanel) | C217: No. | D217: 3 | E217: 0 | G217: 0
A219: 6.4 | B219: Photocell | C219: No. | D219: 0 | E219: 0 | G219: 0
B223: AMOUNT CARRIED FORWARD | G223: =SUM(G173:G221) -> 0
A225: BILL NO. 4 : GENERAL ELECTRICAL
A227: Item | B227: Description | C227: Unit | D227: Qty | E227: Rate | F227: Amount
A228: 6.5 | B228: Key activated light switch | C228: No. | D228: 0 | E228: 0 | G228: =D228*E228 -> 0
B230: Install
A231: 6.6 | B231: =B213 -> 16 A , 1-lever , 1-way | C231: No. | D231: =D213 -> 11 | E231: 0 | G231: 0
A233: 6.7 | B233: =B215 -> 16 A , 1-lever , 2-way | C233: No. | D233: =D215 -> 1 | E233: 0 | G233: 0
A235: 6.8 | B235: =B217 -> Movement Sensor (1 Chanel) | C235: No. | D235: =D217 -> 3 | E235: 0 | G235: 0
A237: 6.9 | B237: Photocell | C237: No. | D237: =D219 -> 0 | E237: 0 | G237: 0
A239: 7 | B239: Luminaires
B240: Supply, install and connect the following luminaires as specified in the Project specification including 5A plug tops & bases to outlet points as required.
B241: Supply
A242: 7.1 | B242: Type A | C242: No. | D242: =Measure!Z79+3-9 -> 33 | E242: 0 | G242: =D242*E242 -> 0
A244: 7.2 | B244: Type B | C244: No. | D244: =Measure!AA79 -> 37 | E244: 0 | G244: =D244*E244 -> 0
A246: 7.3 | B246: Type C | C246: No. | D246: =Measure!AB79 -> 3 | E246: 0 | G246: 0
A248: 7.4 | B248: Type D | C248: No, | D248: =Measure!AC79+1+6 -> 14 | E248: 0 | G248: =D248*E248 -> 0
A250: 7.5 | B250: Type E | C250: No. | D250: =Measure!AD79 -> 6 | E250: 0 | G250: =D250*E250 -> 0
A252: 7.6 | B252: Type F | C252: m | D252: =Measure!AE79+7 -> 97 | E252: 0 | G252: =D252*E252 -> 0
A254: 7.7 | B254: Type F - Elbows | C254: No | D254: 24 | E254: 0 | G254: =D254*E254 -> 0
A256: 7.8 | B256: Type G | C256: m | D256: =16+20 -> 36 | E256: 0 | G256: =D256*E256 -> 0
A258: 7.9 | B258: Match exisitng check in counter luminaires | C258: No. | D258: 3 | E258: 0 | G258: =D258*E258 -> 0
B260: Install
A261: 7.10 | B261: Type A | C261: No. | D261: =D242 -> 33 | E261: 0 | G261: 0
A263: 7.11 | B263: Type B | C263: No. | D263: =D244 -> 37 | E263: 0 | G263: 0
A265: 7.12 | B265: Type C | C265: No. | D265: =D246 -> 3 | E265: 0 | G265: 0
A267: 7.13 | B267: Type D | C267: No. | D267: =10 -> 10 | E267: 0 | G267: =D267*E267 -> 0
A269: 7.14 | B269: Type E | C269: No. | D269: =D250 -> 6 | E269: 0 | G269: =D269*E269 -> 0
A271: 7.15 | B271: Type F | C271: m | D271: =D252 -> 97 | E271: 0 | G271: =D271*E271 -> 0
A273: 7.16 | B273: Type F - Elbows | C273: No. | D273: 21 | E273: 0 | G273: =D273*E273 -> 0
A275: 7.17 | B275: Type G | C275: m | D275: =D256 -> 36 | E275: 0 | G275: =D275*E275 -> 0
A277: 7.18 | B277: Check in counter luminaires | C277: No. | D277: =D258 -> 3 | E277: 0 | G277: =D277*E277 -> 0
B279: AMOUNT CARRIED FORWARD | G279: =SUM(G228:G277) -> 0
A281: BILL NO. 4 : GENERAL ELECTRICAL
A283: Item | B283: Description | C283: Unit | D283: Qty | E283: Rate | F283: Amount
A284: 8 | B284: Conductors
B286: PVC insulated 600/1 000 V copper conductors,
B287: including earth, drawn into conduit.
B289: Supply
A291: 8.1 | B291: 1.5 mm² | C291: m | D291: =Measure!Q79 -> 1341 | E291: 0 | G291: =D291*E291 -> 0
A293: 8.2 | B293: 2.5 mm² | C293: m | D293: =Measure!R79 -> 1899 | E293: 0 | G293: =D293*E293 -> 0
A295: 8.3 | B295: 4.0 mm² | C295: m | D295: =Measure!U79 -> 588 | E295: 0 | G295: 0
A297: 8.4 | B297: 6.0 mm² | C297: m | D297: =Measure!V79 -> 0 | E297: 0 | G297: =D297*E297 -> 0
B299: Install
A301: 8.5 | B301: 1.5 mm² | C301: m | D301: =D291 -> 1341 | E301: 0 | G301: 0
A303: 8.6 | B303: 2.4 mm² | C303: m | D303: =D293 -> 1899 | E303: 0 | G303: 0
A305: 8.7 | B305: 4.0 mm² | C305: m | D305: =D295 -> 588 | E305: 0 | G305: 0
A307: 8.8 | B307: 4.0 mm² | C307: m | D307: =D297 -> 0 | E307: 0 | G307: =D307*E307 -> 0
B309: Surfix Cable
B311: Supply
A313: 8.9 | B313: 2.5 mm² - 4 core | C313: m | D313: 0 | E313: 0 | G313: =D313*E313 -> 0
A315: 8.10 | B315: 4.0 mm² - 4 core | C315: m | D315: 0 | E315: 0 | G315: =D315*E315 -> 0
A317: 8.11 | B317: 6.0 mm² - 4 core | C317: m | D317: 0 | E317: 0 | G317: =D317*E317 -> 0
B319: Install
A321: 8.12 | B321: 2.5 mm² - 4 core | C321: m | D321: =D313 -> 0 | E321: 0 | G321: =D321*E321 -> 0
A323: 8.13 | B323: 4.0 mm² - 4 core | C323: m | D323: =D315 -> 0 | E323: 0 | G323: =D323*E323 -> 0
A325: 8.14 | B325: 6.0 mm² - 4 core | C325: m | D325: =D317 -> 0 | E325: 0 | G325: =D325*E325 -> 0
A327: 9 | B327: Galvanised draw wire drawn into conduit for Data
B328: telephone, intercom and electrical installation
A330: 9.1 | B330: Supply | C330: m | D330: =D15 -> 1452 | E330: 0 | G330: 0
A332: 9.2 | B332: Install | C332: m | D332: =D330 -> 1452 | E332: 0 | G332: 0
B337: AMOUNT CARRIED FORWARD | G337: =SUM(G284:G335) -> 0
A339: BILL NO. 4 : GENERAL ELECTRICAL
A341: Item | B341: Description | C341: Unit | D341: Qty | E341: Rate | F341: Amount
A343: 10 | B343: Galvanised Wiring Ducts complete with covers, splices and hanger brackets.
B345: P9000
A347: 10.1 | B347: Supply | C347: m | D347: 20 | E347: 0 | G347: 0
A349: 10.2 | B349: Install | C349: m | D349: =D347 -> 20 | E349: 0 | G349: 0
B351: P9000 - Elbow
A353: 10.3 | B353: Supply | C353: m | D353: 1 | E353: 0 | G353: =D353*E353 -> 0
A355: 10.4 | B355: Install | C355: m | D355: =D353 -> 1 | E355: 0 | G355: =D355*E355 -> 0
B357: P9000 - Distribution outlet
A359: 10.5 | B359: Supply | C359: m | D359: 1 | E359: 0 | G359: =D359*E359 -> 0
A361: 10.6 | B361: Install | C361: m | D361: =D359 -> 1 | E361: 0 | G361: =D361*E361 -> 0
B363: P9000 - Tee
A365: 10.7 | B365: Supply | C365: m | D365: 0 | E365: 0 | G365: =D365*E365 -> 0
A367: 10.8 | B367: Install | C367: m | D367: =D365 -> 0 | E367: 0 | G367: =D367*E367 -> 0
B369: P9000 - Distribution End Cap
A371: 10.9 | B371: Supply | C371: m | D371: 1 | E371: 0 | G371: =D371*E371 -> 0
A373: 10.10 | B373: Install | C373: m | D373: =D371 -> 1 | E373: 0 | G373: =D373*E373 -> 0
B375: P8000
A377: 10.11 | B377: Supply | C377: m | D377: 20 | E377: 0 | G377: =D377*E377 -> 0
A379: 10.12 | B379: Install | C379: m | D379: =D377 -> 20 | E379: 0 | G379: =D379*E379 -> 0
B381: P8000 - Elbow
A383: 10.13 | B383: Supply | C383: m | D383: 1 | E383: 0 | G383: =D383*E383 -> 0
A385: 10.14 | B385: Install | C385: m | D385: =D383 -> 1 | E385: 0 | G385: =D385*E385 -> 0
B387: P8000 - Distribution outlet
A389: 10.15 | B389: Supply | C389: m | D389: 1 | E389: 0 | G389: =D389*E389 -> 0
A391: 10.16 | B391: Install | C391: m | D391: =D389 -> 1 | E391: 0 | G391: =D391*E391 -> 0
B394: AMOUNT CARRIED FORWARD | G394: =SUM(G342:G392) -> 0
A396: BILL NO. 4 : GENERAL ELECTRICAL
A398: Item | B398: Description | C398: Unit | D398: Qty | E398: Rate | F398: Amount
B401: P8000 - Tee
A403: 10.17 | B403: Supply | C403: m | D403: 0 | E403: 0 | G403: =D403*E403 -> 0
A405: 10.18 | B405: Install | C405: m | D405: =D403 -> 0 | E405: 0 | G405: =D405*E405 -> 0
... 74 more rows

Sheet Bill 5 (hidden)
A1: BILL NO. 5: PROVISIONAL AMOUNTS
A3: Item | B3: Description | C3: Unit | D3: Qty | E3: Rate | F3: Amount
A5: 1 | B5: Allow for the following Provisional Amounts
A7: 1.1 | B7: Provide 75" Ultra HD OLED TV screens for FIDS and CCTV display of Security/Queing progress. (Add indicated value in amount column) | C7: Sum | E7: 40,000.00
A9: 1.2 | B9: Profit on item 1.1 above (Indicate percentage and value in amount column) | C9: %
A11: 1.3 | B11: Allowance for changes to Fire Detection and Voice Evacuation System. (Add indicated value in amount column) | C11: Sum | E11: 30,000.00
B13: Profit on item 1.3 above (Indicate percentage and value in amount column) | C13: %
A15: 1.4 | B15: Allowance for provision of security equipmnet. (Add indicated value in amount column) | C15: Sum | E15: 3,000,000.00
B17: Profit on item 1.4 above (Indicate percentage and value in amount column) | C17: %
A19: 1.5 | B19: Allowance for changes to CCTV System. (Add indicated value in amount column) | C19: Sum | E19: 180,000.00
B21: Profit on item 1.5 above (Indicate percentage and value in amount column) | C21: %
A23: 1.6 | B23: Allowance for changes to Data and Telephone cabeling including network equipment. (Add indicated value in amount column) | C23: Sum | E23: 180,000.00
B25: Profit on item 1.6 above (Indicate percentage and value in amount column) | C25: %
A27: 1.7 | B27: Allowance for checkin counter equipment. (Add indicated value in amount column) | C27: Sum | E27: 300,000.00
B29: Profit on item 1.7 above (Indicate percentage and value in amount column) | C29: %
B40: TOTAL FOR BILL NO. 5: PROVISIONAL AMOUNTS | F40: =SUM(F4:F39) -> 0
B41: (CARRIED TO FINAL SUMMARY)

Sheet Summary
A1: SUMMARY
A3: Bill no 1: Preliminary and General | F3: R | G3: ='Bill 1'!F46 -> 0
A5: Bill no 2: Siteworks and Supervision | F5: R | G5: ='Bill 2'!F53 -> 0
A7: Bill no 3: L.V Reticulation | F7: R | G7: ='Bill 3'!F150 -> 0
A9: Bill no 4: General Electrical | F9: R | G9: ='Bill 4'!G542 -> 0
A12: Sub-Total A - VAT excluded | F12: R | G12: =G3+G5+G7+G9 -> 0
A14: Contingency (5%) | F14: R | G14: =G12*0.05 -> 0
A16: Sub-Total B - VAT excluded | F16: R | G16: =G12+G14 -> 0
A18: Add 15% VAT here | G18: =G16*0.15 -> 0
A20: Total VAT included carry to tender form | F20: R | G20: =G16+G18 -> 0
A23: COMPLIANCE
A25: I/We tender for the execution of the service as described herein and in accordance with the Conditions in documents specially mentioned therein, the contents of all of which I/we acknowledge myself/ourselves to be fully acquainted.
A30: _______________________________
A31: SIGNATURE OF TENDERER | F31: DATE
A33: TENDERER'S ADDRESS
A42: CONTACT PERSON
A44: TELEPHONE NUMBER
A46: FAX NUMBER :
A48: E-MAIL
A52: THREE PHASE WIREMANS LICENCE No:
A54: ELECTRICAL CONTRACTORS NAME & REGISTRATION No:
